fUSD/lending_fUSD_20241023
["ID","MTS","AMOUNT","RATE_DAILY","PERIOD"]
[340703711,1729695096552,-1233.24,0.00051714,7]
[340703712,1729695096563,-500.0,0.00051714,120]
[340703713,1729695096573,-500.0,0.00051714,120]
[340703714,1729695096582,-500.0,0.00051714,120]
[340703715,1729695096591,-500.0,0.00051714,60]
[340703716,1729695096604,-500.0,0.00051714,120]
[340703717,1729695096615,-500.0,0.00051714,120]
[340703718,1729695096624,-500.0,0.00051714,120]
[340703719,1729695096634,-325.9639175,0.00051714,120]
[340703720,1729695096643,-500.0,0.00051714,120]
[340703721,1729695096652,-500.0,0.00051714,120]
[340703722,1729695096661,-240.13344691,0.00051714,120]
[340703723,1729695096670,-500.0,0.00051714,120]
[340703724,1729695096679,-500.0,0.00051714,120]
[340703725,1729695096689,-500.0,0.00051714,120]
[340703726,1729695096698,-177.1547585,0.00051714,120]
[340703727,1729695096708,-500.0,0.00051714,120]
[340703728,1729695096717,-500.0,0.00051714,120]
[340703729,1729695096726,-500.0,0.00051714,120]
[340703730,1729695096736,-623.29,0.00051714,120]
[340703731,1729695096747,-500.0,0.00051714,120]
[340703732,1729695096758,-168.21930722,0.00051714,120]
[340703733,1729695096768,-500.0,0.00051714,120]
[340703734,1729695096778,-500.0,0.00051714,120]
[340703735,1729695096789,-616.53,0.00051714,120]
[340703736,1729695096799,-500.0,0.00051714,120]
[340703737,1729695096811,-500.0,0.00051714,120]
[340703738,1729695096824,-500.0,0.00051714,120]
[340703739,1729695096834,-500.0,0.00051714,120]
[340703740,1729695096845,-533.17,0.00051714,120]
[340703741,1729695096856,-557.53,0.00051714,120]
[340703742,1729695096866,-500.0,0.00051714,2]
[340703743,1729695096875,-500.0,0.00051714,120]
[340703744,1729695096885,-500.0,0.00051714,120]
[340703745,1729695096894,-500.0,0.00051714,120]
[340703746,1729695096906,-500.0,0.00051714,120]
[340703747,1729695096916,-500.0,0.00051714,120]
[340703748,1729695096926,-538.31491031,0.00051714,120]
[340703749,1729695096935,-500.0,0.00051714,120]
[340703750,1729695096945,-500.0,0.00051714,120]
[340703751,1729695096955,-500.0,0.00051714,120]
[340703752,1729695096965,-500.0,0.00051714,120]
[340703753,1729695096975,-761.83,0.00051714,120]
[340703754,1729695096985,-509.00814718,0.00051714,120]
[340703755,1729695096996,-513.83599337,0.00051714,120]
[340703756,1729695097008,-500.0,0.00051714,120]
[340703757,1729695097018,-500.0,0.00051714,120]
[340703758,1729695097028,-500.0,0.00051714,120]
[340703759,1729695097038,-500.0,0.00051714,120]
[340703760,1729695097047,-500.0,0.00051714,120]
[340703761,1729695097057,-500.0,0.00051714,120]
[340703762,1729695097066,-500.0,0.00051714,120]
[340703763,1729695097075,-500.0,0.00051714,120]
[340703764,1729695097085,-500.0,0.00051714,120]
[340703765,1729695097094,-1259.92,0.00051714,120]
[340703766,1729695097107,-500.0,0.00051714,120]
[340703767,1729695097116,-500.0,0.00051714,120]
[340703768,1729695097125,-457.97092413,0.00051714,120]
[340703769,1729695097135,-334.22092928,0.00051714,120]
[340703770,1729695097145,-500.0,0.00051714,120]
[340703771,1729695097154,-500.0,0.00051714,120]
[340703772,1729695097163,-500.0,0.00051714,120]
[340703773,1729695097174,-500.0,0.00051714,120]
[340703774,1729695097183,-500.0,0.00051714,120]
[340703775,1729695097193,-500.0,0.00051714,120]
[340703776,1729695097203,-500.0,0.00051714,120]
[340703777,1729695097212,-500.0,0.00051714,120]
[340703778,1729695097221,-500.0,0.00051714,120]
[340703779,1729695097232,-500.0,0.00051714,120]
[340703780,1729695097241,-175.22113073,0.00051714,120]
[340703781,1729695097252,-500.0,0.00051714,120]
[340703782,1729695097262,-500.0,0.00051714,120]
[340703783,1729695097272,-500.0,0.00051714,120]
[340703784,1729695097281,-500.0,0.00051714,120]
[340703785,1729695097291,-591.95,0.00051714,120]
[340703786,1729695097300,-500.0,0.00051714,120]
[340703787,1729695097310,-1926.93,0.00051714,120]
[340703788,1729695097319,-500.0,0.00051714,120]
[340703789,1729695097329,-500.0,0.00051714,120]
[340703790,1729695097338,-500.0,0.00051714,120]
[340703791,1729695097348,-1953.12,0.00051714,120]
[340703792,1729695097358,-500.0,0.00051714,120]
[340703793,1729695097367,-1316.14,0.00051714,120]
[340703794,1729695097377,-513.64,0.00051714,120]
[340703795,1729695097386,-500.0,0.00051714,120]
[340703796,1729695097396,-1902.26,0.00051714,120]
[340703797,1729695097405,-500.0,0.00051714,120]
[340703798,1729695097415,-699.33,0.00051714,120]
[340703799,1729695097425,-2403.72,0.00051714,120]
[340703800,1729695097435,-686.38,0.00051714,120]
[340703801,1729695097447,-500.0,0.00051714,120]
[340703802,1729695097457,-500.0,0.00051714,120]
[340703803,1729695097467,-631.69,0.00051714,120]
[340703804,1729695097477,-500.0,0.00051714,120]
[340703805,1729695097488,-2091.96,0.00051714,120]
[340703806,1729695097498,-549.51,0.00051714,120]
[340703807,1729695097508,-501.15,0.00051714,120]
[340703808,1729695097518,-2666.93,0.00051714,120]
[340703809,1729695097529,-1895.2,0.00051714,120]
[340703810,1729695097541,-278.69414981,0.00051714,120]
[340703811,1729695097552,-500.0,0.00051714,120]
[340703812,1729695097562,-639.01,0.00051714,120]
[340703813,1729695097572,-2056.13,0.00051714,120]
[340703814,1729695097581,-500.0,0.00051714,120]
[340703815,1729695097592,-739.87,0.00051714,120]
[340703816,1729695097604,-500.0,0.00051715,120]
[340703817,1729695097613,-500.0,0.00051715,120]
[340703818,1729695097623,-651.7,0.00051715,120]
[340703819,1729695097632,-500.0,0.00051715,120]
[340703820,1729695097641,-500.0,0.00051715,120]
[340703821,1729695097651,-500.0,0.00051715,120]
[340703822,1729695097661,-500.0,0.00051715,120]
[340703823,1729695097670,-505.6,0.00051715,120]
[340703824,1729695097679,-531.83,0.00051715,120]
[340703825,1729695097689,-500.0,0.00051715,120]
[340703826,1729695097698,-861.3,0.00051715,120]
[340703827,1729695097707,-645.91,0.00051715,120]
[340703828,1729695097717,-500.0,0.00051715,120]
[340703829,1729695097726,-1300.94,0.00051715,120]
[340703830,1729695097736,-2414.78,0.00051715,120]
[340703831,1729695097746,-500.0,0.00051715,120]
[340703832,1729695097756,-500.0,0.00051715,120]
[340703833,1729695097765,-500.0,0.00051715,120]
[340703834,1729695097774,-500.0,0.00051715,120]
[340703835,1729695097784,-500.0,0.00051715,120]
[340703836,1729695097793,-1666.47,0.00051715,120]
[340703837,1729695097802,-500.0,0.00051715,120]
[340703838,1729695097985,-1038.31,0.00051785,120]
[340703839,1729695098006,-500.0,0.00051785,120]
[340703840,1729695098018,-1396.2,0.00051785,120]
[340703841,1729695098028,-2499.88,0.00051785,120]
[340703842,1729695098041,-581.14,0.00051785,120]
[340703843,1729695098052,-2403.29,0.00051785,120]
[340703844,1729695098062,-2393.31,0.00051785,120]
[340703845,1729695098073,-1078.45,0.00051785,120]
[340703846,1729695098084,-1462.44,0.00051785,120]
[340703847,1729695098094,-865.81,0.00051785,120]
[340703848,1729695098104,-596.71,0.00051785,120]
[340703849,1729695098114,-1434.43,0.00051785,120]
[340703850,1729695098123,-539.87,0.00051785,120]
[340703851,1729695098134,-6123.06,0.00051785,120]
[340703852,1729695098145,-500.0,0.00051785,120]
[340703853,1729695098155,-500.0,0.00051785,120]
[340703854,1729695098167,-500.0,0.00051786,120]
[340703855,1729695098177,-551.7,0.00051786,120]
[340703856,1729695098186,-500.0,0.00051786,120]
[340703857,1729695098197,-500.0,0.00051786,120]
[340703858,1729695098209,-1279.4,0.00051786,120]
[340703859,1729695098219,-541.69,0.00051786,120]
[340703860,1729695098230,-500.0,0.00051786,120]
[340703861,1729695098240,-500.0,0.00051786,120]
[340703862,1729695098250,-500.0,0.00051786,120]
[340703863,1729695098259,-500.0,0.00051786,120]
[340703864,1729695098269,-500.0,0.00051786,120]
[340703865,1729695098278,-800.5,0.00051786,120]
[340703866,1729695098287,-829.74,0.00051786,120]
[340703867,1729695098297,-500.0,0.00051786,120]
[340703868,1729695098306,-500.0,0.00051786,120]
[340703869,1729695098315,-831.97,0.00051786,120]
[340703870,1729695098325,-500.0,0.00051786,120]
[340703871,1729695098335,-3068.62,0.00051786,120]
[340703872,1729695098344,-2062.02,0.00051786,120]
[340703873,1729695098356,-636.42,0.00051786,120]
[340703874,1729695098366,-500.0,0.00051786,120]
[340703875,1729695098375,-632.86,0.00051786,120]
[340703876,1729695098385,-437.09427796,0.00051786,120]
[340703877,1729695098395,-521.15,0.00051786,120]
[340703878,1729695098404,-500.0,0.00051786,120]
[340703879,1729695098413,-500.0,0.00051786,120]
[340703880,1729695098423,-1010.38,0.00051786,120]
[340703881,1729695098432,-500.0,0.00051786,120]
[340703882,1729695098442,-500.0,0.00051786,120]
[340703883,1729695098452,-829.76,0.00051786,120]
[340703884,1729695098461,-710.82,0.00051786,120]
[340703885,1729695098471,-500.0,0.00051786,120]
[340703886,1729695098480,-500.0,0.00051786,120]
[340703887,1729695098490,-500.0,0.00051786,120]
[340703888,1729695098500,-500.0,0.00051786,120]
[340703889,1729695098510,-500.0,0.00051786,120]
[340703890,1729695098520,-500.0,0.00051786,120]
[340703891,1729695098530,-500.0,0.00051786,120]
[340703892,1729695098540,-500.0,0.00051786,120]
[340703893,1729695098550,-500.0,0.00051786,120]
[340703894,1729695098559,-2091.95,0.00051786,120]
[340703895,1729695098569,-285.083403,0.00051786,120]
[340703896,1729695098579,-405.89748,0.00051786,120]
[340703897,1729695098588,-15318.09,0.00051786,120]
[340703898,1729695098598,-500.0,0.00051786,120]
[340703899,1729695098607,-696.58,0.00051786,120]
[340703900,1729695098617,-500.0,0.00051786,120]
[340703901,1729695098627,-500.0,0.00051786,120]
[340703902,1729695098637,-956.6,0.00051786,120]
[340703903,1729695098647,-500.0,0.00051786,120]
[340703904,1729695098657,-500.0,0.00051786,120]
[340703905,1729695098667,-500.0,0.00051786,120]
[340703906,1729695098677,-1237.23,0.00051786,120]
[340703907,1729695098686,-500.0,0.00051786,120]
[340703908,1729695098696,-500.0,0.00051786,120]
[340703909,1729695098705,-500.0,0.00051786,120]
[340703910,1729695098716,-500.0,0.00051786,120]
[340703911,1729695098726,-500.0,0.00051786,120]
[340703912,1729695098736,-500.0,0.00051786,120]
[340703913,1729695098746,-500.0,0.00051786,120]
[340703914,1729695098756,-5655.78,0.00051786,21]
[340703915,1729695098765,-500.0,0.00051786,120]
[340703916,1729695098775,-500.0,0.00051786,120]
[340703917,1729695098784,-592.21777225,0.00051786,120]
[340703918,1729695098794,-500.0,0.00051786,120]
[340703919,1729695098804,-1801.94,0.00051786,120]
[340703920,1729695098813,-1551.48,0.00051786,120]
[340703921,1729695098826,-500.0,0.00051786,120]
[340703922,1729695098836,-946.91,0.00051786,120]
[340703923,1729695098846,-2527.52,0.00051786,120]
[340703924,1729695098855,-1036.64,0.00051786,120]
[340703925,1729695098865,-500.0,0.00051786,120]
[340703926,1729695098875,-500.0,0.00051786,120]
[340703927,1729695098884,-2104.19,0.00051786,120]
[340703928,1729695098894,-500.0,0.00051786,120]
[340703929,1729695098904,-500.0,0.00051786,120]
[340703930,1729695098915,-298.59669972,0.00051786,120]
[340703931,1729695098924,-500.0,0.00051786,120]
[340703932,1729695098934,-514.44,0.00051786,120]
[340703933,1729695098943,-500.0,0.00051787,120]
[340703934,1729695098953,-500.0,0.00051787,120]
[340703935,1729695098962,-500.0,0.00051787,120]
[340703936,1729695098971,-500.0,0.00051787,120]
[340703937,1729695098982,-546.83,0.00051787,120]
[340703938,1729695098991,-527.01,0.00051787,120]
[340703939,1729695099002,-633.57,0.00051787,120]
[340703940,1729695099011,-500.0,0.00051787,120]
[340703941,1729695099021,-500.0,0.00051787,120]
[340703942,1729695099031,-548.76,0.00051787,120]
[340703943,1729695099041,-500.0,0.00051787,120]
[340703944,1729695099051,-500.0,0.00051787,120]
[340703945,1729695099060,-500.0,0.00051787,120]
[340703946,1729695099070,-500.0,0.00051787,120]
[340703947,1729695099081,-246.77465379,0.00051787,120]
[340703948,1729695099090,-500.0,0.00051787,120]
[340703949,1729695099102,-500.0,0.00051787,120]
[340703950,1729695099112,-552.51,0.00051787,120]
[340703951,1729695099121,-500.0,0.00051787,120]
[340703952,1729695099131,-1010.74,0.00051787,120]
[340703953,1729695099141,-226.36,0.00051787,120]
[340703954,1729695099151,-500.0,0.00051787,120]
[340703955,1729695099160,-500.0,0.00051787,120]
[340703956,1729695099170,-500.0,0.00051787,120]
[340703957,1729695099180,-664.87,0.00051787,120]
[340703958,1729695099190,-530.40801331,0.00051787,120]
[340703959,1729695099201,-1025.87,0.00051787,120]
[340703960,1729695099211,-500.0,0.00051787,120]
[340703961,1729695099221,-500.0,0.00051787,120]
[340703962,1729695099231,-500.0,0.00051787,120]
[340703963,1729695099241,-500.0,0.00051787,120]
[340703964,1729695099252,-500.0,0.00051787,120]
[340703965,1729695099262,-588.83,0.00051787,120]
[340703966,1729695099273,-500.0,0.00051787,120]
[340703967,1729695099282,-2381.92,0.00051787,120]
[340703968,1729695099292,-500.0,0.00051787,120]
[340703969,1729695099302,-1507.06,0.00051787,120]
[340703970,1729695099312,-500.0,0.00051787,120]
[340703971,1729695099322,-3850.95,0.00051787,120]
[340703972,1729695099331,-500.0,0.00051787,120]
[340703973,1729695099343,-618.02,0.00051787,120]
[340703974,1729695099354,-442.56293433,0.00051787,120]
[340703975,1729695099363,-500.0,0.00051787,120]
[340703976,1729695099374,-524.46878774,0.00051787,120]
[340703977,1729695099383,-1937.11,0.00051787,120]
[340703978,1729695099392,-2061.54,0.00051787,120]
[340703979,1729695099402,-519.31628118,0.00051787,120]
[340703980,1729695099412,-500.0,0.00051787,120]
[340703981,1729695099422,-2726.69,0.00051787,120]
[340703982,1729695099431,-500.0,0.00051787,120]
[340703983,1729695099440,-500.0,0.00051787,120]
[340703984,1729695099450,-812.34,0.00051787,120]
[340703985,1729695099459,-840.01,0.00051787,120]
[340703986,1729695099469,-1694.03,0.00051787,120]
[340703987,1729695099478,-1245.48,0.00051787,120]
[340703988,1729695099487,-500.0,0.00051787,120]
[340703989,1729695099497,-500.0,0.00051787,120]
[340703990,1729695099508,-1202.0,0.00051787,120]
[340703991,1729695099519,-2671.09,0.00051787,120]
[340703992,1729695099529,-500.0,0.00051787,120]
[340703993,1729695099539,-500.0,0.00051794,120]
[340703994,1729695099549,-316.85762601,0.00051794,120]
[340703995,1729695099559,-308.27597494,0.00051794,120]
[340703996,1729695099568,-500.0,0.00051794,120]
[340703997,1729695099579,-2110.0,0.00051794,2]
[340703998,1729695099590,-500.0,0.00051887,120]
[340703999,1729695099600,-517.46,0.00051887,120]
[340704000,1729695099609,-500.0,0.00051887,120]
[340704001,1729695099618,-500.0,0.00051887,120]
[340704002,1729695099628,-688.94,0.00051887,120]
[340704003,1729695099637,-3187.68,0.00051887,120]
[340704004,1729695099647,-720.0,0.00051887,120]
[340704005,1729695099656,-1671.38,0.00051887,120]
[340704006,1729695099666,-1870.15,0.00051887,120]
[340704007,1729695099676,-548.44,0.00051887,120]
[340704008,1729695099685,-639.46,0.00051887,120]
[340704009,1729695099695,-500.0,0.00051887,120]
[340704010,1729695099704,-949.63,0.00051887,120]
[340704011,1729695099714,-5070.58,0.00051887,120]
[340704012,1729695099723,-2860.91,0.00051887,120]
[340704013,1729695099733,-4127.93,0.00051887,120]
[340704014,1729695099743,-500.0,0.00051888,120]
[340704015,1729695099752,-500.0,0.00051888,120]
[340704016,1729695099762,-500.0,0.00051888,120]
[340704017,1729695099772,-500.0,0.00051888,120]
[340704018,1729695099782,-500.0,0.00051888,120]
[340704019,1729695099792,-537.64122698,0.00051888,120]
[340704020,1729695099801,-500.0,0.00051888,120]
[340704021,1729695099813,-500.0,0.00051888,120]
[340704022,1729695099827,-500.0,0.00051888,120]
[340704023,1729695099838,-500.0,0.00051888,120]
[340704024,1729695099849,-500.0,0.00051888,120]
[340704025,1729695099859,-500.0,0.00051888,120]
[340704026,1729695099869,-500.0,0.00051888,120]
[340704027,1729695099879,-500.0,0.00051888,120]
[340704028,1729695099890,-270.66320087,0.00051888,120]
[340704029,1729695099902,-704.8,0.00051888,120]
[340704030,1729695099912,-851.17,0.00051888,120]
[340704031,1729695099923,-500.0,0.00051888,120]
[340704032,1729695099933,-1610.91,0.00051888,120]
[340704033,1729695099943,-2404.26,0.00051888,120]
[340704034,1729695099952,-500.0,0.00051888,120]
[340704035,1729695099962,-2023.4,0.00051888,120]
[340704036,1729695099972,-610.2,0.00051888,120]
[340704037,1729695099982,-1452.47,0.00051888,120]
[340704038,1729695099993,-831.56,0.00051888,120]
[340704039,1729695100002,-500.0,0.00051888,120]
[340704040,1729695100014,-623.53,0.00051888,120]
[340704041,1729695100024,-500.0,0.00051888,120]
[340704042,1729695100035,-777.0,0.00051888,120]
[340704043,1729695100044,-590.11,0.00051888,120]
[340704044,1729695100053,-1000.0,0.000519,7]
[340704045,1729695100063,-500.0,0.00051961,120]
[340704046,1729695100073,-500.0,0.00051961,120]
[340704047,1729695100083,-1365.7604546,0.00051964,2]
[340704048,1729695100092,-12162.6481105,0.00051964,2]
[340704049,1729695100103,-3412.5220282,0.00051964,2]
[340704050,1729695100112,-60188.6338333,0.00051964,2]
[340704051,1729695100124,-2369.3709666,0.00051964,2]
[340704052,1729695100134,-500.0,0.00051976,120]
[340704053,1729695100145,-722.51,0.00051976,120]
[340704054,1729695100154,-1345.84,0.00051976,120]
[340704055,1729695100165,-1084.74,0.00051976,120]
[340704056,1729695100176,-500.0,0.00051976,120]
[340704057,1729695100186,-500.0,0.00051976,120]
[340704058,1729695100195,-500.0,0.00051976,120]
[340704059,1729695100204,-500.0,0.00051976,120]
[340704060,1729695100215,-1845.24,0.00051976,120]
[340704061,1729695100224,-841.4,0.00051976,120]
[340704062,1729695100234,-500.0,0.00051976,120]
[340704063,1729695100243,-678.77,0.00051976,120]
[340704064,1729695100253,-564.76,0.00051976,120]
[340704065,1729695100264,-550.03,0.00051976,120]
[340704066,1729695100275,-500.0,0.00051976,120]
[340704067,1729695100286,-531.72,0.00051976,120]
[340704068,1729695100296,-500.0,0.00051976,120]
[340704069,1729695100307,-1168.65,0.00051976,120]
[340704070,1729695100319,-500.0,0.00051976,120]
[340704071,1729695100330,-500.0,0.00051976,120]
[340704072,1729695100341,-500.0,0.00051976,120]
[340704073,1729695100354,-500.0,0.00051976,120]
[340704074,1729695100364,-500.0,0.00051976,120]
[340704075,1729695100373,-500.0,0.00051976,120]
[340704076,1729695100383,-500.0,0.00051976,120]
[340704077,1729695100392,-582.29,0.00051976,120]
[340704078,1729695100401,-500.0,0.00051976,120]
[340704079,1729695100411,-500.0,0.00051976,120]
[340704080,1729695100420,-500.0,0.00051976,120]
[340704081,1729695100430,-500.0,0.00051976,120]
[340704082,1729695100440,-500.0,0.00051976,120]
[340704083,1729695100449,-500.0,0.00051976,120]
[340704084,1729695100459,-500.0,0.00051976,120]
[340704085,1729695100469,-500.0,0.00051976,120]
[340704086,1729695100537,-156.84654007,0.00051976,120]
[340704087,1729695100547,-500.0,0.00051976,120]
[340704088,1729695100556,-500.0,0.00051976,120]
[340704089,1729695100566,-735.4,0.00051976,120]
[340704090,1729695100576,-868.01,0.00051976,7]
[340704091,1729695100586,-1768.35,0.00051976,120]
[340704092,1729695100595,-500.0,0.00051976,120]
[340704093,1729695100608,-500.0,0.00051976,120]
[340704094,1729695100618,-479.96304616,0.00051976,120]
[340704095,1729695100627,-812.19,0.00051976,120]
[340704096,1729695100637,-500.0,0.00051976,120]
[340704097,1729695100646,-500.0,0.00051976,120]
[340704098,1729695100655,-521.61,0.00051976,120]
[340704099,1729695100664,-500.0,0.00051976,120]
[340704100,1729695100673,-641.46,0.00051976,120]
[340704101,1729695100683,-500.0,0.00051976,120]
[340704102,1729695100692,-500.0,0.00051976,120]
[340704103,1729695100701,-683.15,0.00051976,120]
[340704104,1729695100710,-500.0,0.00051976,120]
[340704105,1729695100720,-500.0,0.00051976,120]
[340704106,1729695100731,-500.0,0.00051976,120]
[340704107,1729695100741,-500.0,0.00051976,120]
[340704108,1729695100750,-500.0,0.00051976,120]
[340704109,1729695100759,-534.35,0.00051976,120]
[340704110,1729695100768,-500.0,0.00051976,120]
[340704111,1729695100779,-549.24,0.00051976,120]
[340704112,1729695100788,-947.82,0.00051976,120]
[340704113,1729695100799,-717.45,0.00051976,120]
[340704114,1729695100808,-500.0,0.00051976,120]
[340704115,1729695100818,-500.0,0.00051976,120]
[340704116,1729695100827,-500.0,0.00051976,120]
[340704117,1729695100836,-500.0,0.00051976,120]
[340704118,1729695100846,-500.0,0.00051976,120]
[340704119,1729695100858,-500.0,0.00051976,120]
[340704120,1729695100868,-500.0,0.00051976,120]
[340704121,1729695100877,-500.0,0.00051976,120]
[340704122,1729695100886,-500.0,0.00051976,120]
[340704123,1729695100896,-500.0,0.00051976,120]
[340704124,1729695100905,-500.0,0.00051976,120]
[340704125,1729695100914,-500.0,0.00051976,120]
[340704126,1729695100924,-500.0,0.00051976,120]
[340704127,1729695100933,-909.83,0.00051976,120]
[340704128,1729695100944,-512.0933786,0.00051976,120]
[340704129,1729695100954,-500.0,0.00051976,120]
[340704130,1729695100963,-500.0,0.00051976,120]
[340704131,1729695100973,-500.0,0.00051976,120]
[340704132,1729695100983,-572.9883984,0.00051976,120]
[340704133,1729695100993,-810.49,0.00051976,120]
[340704134,1729695101003,-500.0,0.00051976,120]
[340704135,1729695101013,-500.0,0.00051976,120]
[340704136,1729695101023,-500.0,0.00051976,120]
[340704137,1729695101033,-638.91,0.00051976,120]
[340704138,1729695101043,-500.0,0.00051976,120]
[340704139,1729695101054,-500.0,0.00051976,120]
[340704140,1729695101064,-500.0,0.00051976,120]
[340704141,1729695101076,-500.0,0.00051976,120]
[340704142,1729695101087,-500.0,0.00051976,120]
[340704143,1729695101098,-500.0,0.00051976,120]
[340704144,1729695101107,-500.0,0.00051976,120]
[340704145,1729695101117,-500.0,0.00051976,120]
[340704146,1729695101126,-500.0,0.00051976,14]
[340704147,1729695101136,-500.0,0.00051976,120]
[340704148,1729695101147,-500.0,0.00051976,120]
[340704149,1729695101157,-500.0,0.00051976,120]
[340704150,1729695101167,-500.0,0.00051976,120]
[340704151,1729695101177,-500.0,0.00051976,120]
[340704152,1729695101187,-283.49804022,0.00051976,120]
[340704153,1729695101198,-500.0,0.00051976,120]
[340704154,1729695101209,-500.0,0.00051976,120]
[340704155,1729695101220,-500.0,0.00051976,120]
[340704156,1729695101231,-500.0,0.00051976,120]
[340704157,1729695101242,-1263.1,0.00051976,120]
[340704158,1729695101252,-500.0,0.00051976,120]
[340704159,1729695101262,-500.0,0.00051976,120]
[340704160,1729695101273,-500.0,0.00051976,120]
[340704161,1729695101284,-564.29,0.00051976,120]
[340704162,1729695101296,-500.0,0.00051976,120]
[340704163,1729695101306,-557.88,0.00051976,120]
[340704164,1729695101315,-500.0,0.00051976,120]
[340704165,1729695101327,-500.0,0.00051976,120]
[340704166,1729695101338,-500.0,0.00051976,120]
[340704167,1729695101348,-686.88,0.00051976,120]
[340704168,1729695101358,-585.56,0.00051976,120]
[340704169,1729695101367,-500.0,0.00051976,120]
[340704170,1729695101376,-575.83142183,0.00051976,120]
[340704171,1729695101387,-500.0,0.00051976,120]
[340704172,1729695101396,-676.0,0.00051976,120]
[340704173,1729695101405,-500.0,0.00051976,120]
[340704174,1729695101415,-659.49,0.00051976,120]
[340704175,1729695101424,-500.0,0.00051976,120]
[340704176,1729695101433,-500.0,0.00051976,120]
[340704177,1729695101442,-500.0,0.00051976,120]
[340704178,1729695101452,-1865.84,0.00051976,120]
[340704179,1729695101462,-500.0,0.00051976,120]
[340704180,1729695101472,-500.0,0.00051976,120]
[340704181,1729695101480,-500.0,0.00051977,120]
[340704182,1729695101490,-500.0,0.00051977,5]
[340704183,1729695101499,-561.85807026,0.00051977,120]
[340704184,1729695101509,-537.46,0.00051977,120]
[340704185,1729695101519,-368.50499892,0.00051977,120]
[340704186,1729695101528,-500.0,0.00051977,120]
[340704187,1729695101538,-500.0,0.00051977,120]
[340704188,1729695101548,-662.0,0.00051977,120]
[340704189,1729695101558,-791.08,0.00051977,120]
[340704190,1729695101567,-500.0,0.00051977,120]
[340704191,1729695101577,-500.0,0.00051977,120]
[340704192,1729695101587,-500.0,0.00051977,120]
[340704193,1729695101596,-763.78,0.00051977,120]
[340704194,1729695101606,-500.0,0.00051977,120]
[340704195,1729695101615,-500.0,0.00051977,120]
[340704196,1729695101624,-571.59,0.00051977,120]
[340704197,1729695101633,-500.0,0.00051977,120]
[340704198,1729695101643,-500.0,0.00051977,120]
[340704199,1729695101652,-500.0,0.00051977,120]
[340704200,1729695101662,-326.30861936,0.00051977,120]
[340704201,1729695101671,-500.0,0.00051977,120]
[340704202,1729695101681,-500.0,0.00051977,120]
[340704203,1729695101690,-805.88,0.00051977,120]
[340704204,1729695101699,-500.0,0.00051977,120]
[340704205,1729695101709,-500.0,0.00051977,120]
[340704206,1729695101718,-500.0,0.00051977,120]
[340704207,1729695101727,-500.0,0.00051988,120]
[340704208,1729695101736,-500.0,0.00051988,120]
[340704209,1729695101746,-633.36,0.00051988,120]
[340704210,1729695101755,-674.13,0.00051988,120]